bitfinex/quotes_ETHUSD_20251215
["timestamp","ask_amount","ask_price","bid_price","bid_amount"]
[1765813680578,0.53677572,3023.2,3021.8,0.002]
[1765813680753,16.295366,3023.1,3021.8,0.002]
[1765813680953,4.546234,3023.1,3021.8,0.002]
[1765813681159,0.53677572,3023.2,3021.8,0.002]
[1765813681160,0.1915,3022.5,3021.8,0.002]
[1765813681364,30.0,3022.9,3021.8,0.002]
[1765813681681,7.17438216,3022.8,3021.8,0.002]
[1765813681994,7.762755,3022.7,3021.8,0.002]
[1765813682144,0.22707572,3022.0,3021.8,0.002]
[1765813682344,0.50837572,3022.6,3021.8,0.002]
[1765813682539,0.1872,3022.3,3021.8,0.002]
[1765813682772,0.4685,3022.5,3021.8,0.002]
[1765813682959,0.558,3022.2,3021.8,0.002]
[1765813683159,0.03987572,3022.0,3021.8,0.002]
[1765813683361,3.81744256,3022.0,3021.8,0.002]
[1765813683580,4.879327,3021.9,3020.3,0.002]
[1765813683766,0.03987572,3021.1,3020.6,3.31053107]
[1765813683967,0.558,3021.0,3020.3,0.002]
[1765813684166,0.558,3021.0,3020.4,3.31071967]
[1765813684478,0.69557572,3021.1,3020.3,0.002]
[1765813684479,0.4685,3020.9,3020.3,0.002]
[1765813684773,0.558,3020.8,3020.3,0.002]
[1765813684976,1.0265,3020.8,3020.3,0.002]
[1765813685344,4.33688135,3020.8,3020.3,0.002]
[1765813685553,0.4685,3020.7,3019.0,0.002]
[1765813685752,0.557,3020.6,3019.0,1.01079771]
[1765813685957,0.557,3020.5,3019.0,0.002]
[1765813686151,6.6207627,3020.8,3019.0,0.58247529]
[1765813686152,0.4685,3020.6,3019.0,0.58247529]
[1765813686393,6.6207627,3020.8,3019.0,0.58247529]
[1765813686394,0.557,3020.5,3019.0,0.002]
[1765813686682,0.03987572,3020.1,3019.0,0.002]
[1765813686882,10.33664805,3020.8,3019.0,0.002]
[1765813686883,0.03987572,3021.2,3019.2,6.92342061]
[1765813687095,1.0265,3021.0,3019.1,0.33144475]
[1765813687301,0.405504,3020.8,3019.0,0.1526]
[1765813687471,11.319299,3020.6,3019.0,0.002]
[1765813687665,13.71046376,3020.7,3019.0,0.002]
[1765813687899,1.60697529,3020.6,3019.0,0.002]
[1765813688104,0.405504,3020.0,3019.0,0.002]
[1765813688277,0.558,3019.9,3019.0,0.002]
[1765813688604,0.558,3019.8,3019.0,0.002]
[1765813688787,6.62098188,3020.7,3019.0,0.002]
[1765813688986,1.0265,3020.6,3019.0,0.002]
[1765813689313,19.614225,3020.5,3019.0,0.002]
[1765813689601,0.98597929,3020.1,3019.0,0.002]
[1765813689770,9.797853,3019.8,3019.0,0.002]
[1765813689968,0.558,3019.7,3019.0,0.002]
[1765813690302,0.4685,3019.6,3019.0,0.002]
[1765813690513,0.4685,3020.3,3019.0,0.002]
[1765813691047,0.558,3020.2,3019.0,0.002]
[1765813691306,0.405504,3020.1,3019.0,0.002]
[1765813691491,0.405504,3019.2,3017.8,0.002]
[1765813691681,30.405504,3018.2,3017.8,0.002]
[1765813691879,0.58047529,3017.8,3016.1,3.31553993]
[1765813692184,0.58047529,3017.8,3016.0,3.41663215]
[1765813692185,19.377456,3018.0,3016.0,10.04794958]
[1765813692491,1.0275,3018.1,3016.8,0.1546]
[1765813692492,0.559,3018.1,3016.8,0.1546]
[1765813692700,0.559,3018.1,3017.1,0.1566]
[1765813693293,0.03987572,3017.9,3017.7,0.002]
[1765813693598,0.03907572,3017.9,3017.7,0.002]
[1765813694168,0.559,3018.1,3017.7,0.002]
[1765813694408,0.03987572,3017.3,3017.1,0.002]
[1765813694609,0.03987572,3017.3,3017.1,3.3164322]
[1765813694819,0.03987572,3017.3,3017.1,0.002]
[1765813695190,0.4685,3017.2,3017.1,0.002]
[1765813695391,0.03987572,3017.3,3017.1,0.002]
[1765813695589,0.03987572,3018.4,3017.2,0.1546]
[1765813695993,0.03987572,3018.6,3017.4,0.58047529]
[1765813696194,0.03987572,3018.6,3017.5,0.79093999]
[1765813696527,0.03987572,3017.6,3016.5,0.002]
[1765813696822,0.56,3017.5,3016.5,0.002]
[1765813697226,0.56,3017.5,3016.6,0.1546]
[1765813697519,0.03987572,3017.6,3017.5,3.31400165]
[1765813697835,0.03987572,3017.6,3017.0,3.31454218]
[1765813697984,0.4685,3017.5,3016.5,0.002]
[1765813698553,7.54891,3017.4,3016.5,0.002]
[1765813698685,0.561,3017.3,3016.5,3.31709032]
[1765813698886,0.561,3017.3,3016.5,6.6321906]
[1765813699199,0.03987572,3017.6,3016.6,0.58047529]
[1765813699415,0.03987572,3017.6,3016.7,6.62976098]
[1765813700137,12.120575,3017.5,3016.5,0.002]
[1765813700288,9.98155555,3017.6,3016.5,0.002]
[1765813700289,16.370281,3017.2,3016.5,0.002]
[1765813700490,2.072242,3017.2,3016.5,0.002]
[1765813700719,0.561,3017.1,3016.6,6.62996398]
[1765813700908,0.561,3017.1,3016.6,9.94495436]
[1765813701218,0.561,3017.1,3016.7,0.58047529]
[1765813701589,0.03987572,3017.6,3016.9,0.58047529]
[1765813701822,0.561,3018.1,3017.0,1.7342076]
[1765813702193,3.87440194,3018.1,3016.9,0.58047529]
[1765813702421,1.0295,3018.1,3016.9,0.58047529]
[1765813702731,0.561,3018.1,3017.0,0.1546]
[1765813702888,0.4685,3019.1,3017.3,0.58047529]
[1765813702889,0.561,3018.7,3017.3,0.58047529]
[1765813703283,0.561,3018.7,3017.4,1.121104]
[1765813703521,1.3802,3019.9,3018.1,0.58047529]
[1765813703814,0.561,3019.4,3018.2,0.405504]
[1765813704024,0.561,3019.4,3018.5,0.58047529]
[1765813704181,0.561,3019.4,3018.4,0.58047529]
[1765813704387,0.56,3020.0,3018.5,0.92331137]
[1765813704586,0.56,3020.0,3018.6,0.405504]
[1765813704890,0.56,3020.0,3018.6,0.1546]
[1765813705508,6.62295516,3019.8,3018.2,9.93969915]
[1765813705711,0.1872,3020.3,3018.3,1.70057929]
[1765813705712,0.56,3020.2,3018.3,1.70057929]
[1765813706019,1.0285,3020.2,3018.4,1.82667445]
[1765813706384,0.4685,3020.1,3018.4,1.82667445]
[1765813706684,0.001,3020.9,3018.7,0.405504]
[1765813706888,0.561,3020.9,3019.2,0.98597929]
[1765813707088,0.561,3020.9,3019.3,0.79380177]
[1765813707620,0.561,3020.9,3019.6,0.58047529]
[1765813708024,0.561,3020.9,3019.7,0.1546]
[1765813708692,0.561,3020.9,3019.8,0.56]
[1765813709129,0.001,3020.2,3019.8,0.1546]
[1765813709432,0.001,3020.2,3019.6,0.58047529]
[1765813709592,0.001,3020.2,3019.8,0.58047529]
[1765813711051,0.001,3020.2,3019.6,6.62335428]
[1765813711220,0.001,3020.2,3019.6,9.93505119]
[1765813711631,0.001,3020.2,3019.5,0.58047529]
[1765813712008,0.001,3020.2,3020.1,0.101]
[1765813712228,0.001,3020.9,3020.1,1.57795137]
[1765813712433,0.001,3020.9,3020.2,0.405504]
[1765813712747,0.001,3020.9,3020.5,0.58047529]
[1765813713124,0.001,3020.9,3020.6,0.1536]
[1765813713516,0.001,3020.9,3020.8,0.58047529]
[1765813713715,0.001,3020.9,3020.8,1.31598164]
[1765813713916,0.001,3020.9,3020.8,1.46958164]
[1765813714851,0.001,3020.9,3020.8,16.55188836]
[1765813715153,0.001,3020.9,3020.8,2.43308564]
[1765813715323,0.001,3020.9,3020.8,6.72207664]
[1765813715527,0.001,3020.9,3020.8,5.74346699]
[1765813715931,0.001,3020.9,3020.8,5.18546699]
[1765813716122,0.001,3020.9,3020.8,5.74346699]
[1765813716740,0.0002,3020.9,3020.8,14.3730518]
[1765813717016,0.0002,3020.9,3020.8,4.77996299]
[1765813717217,0.0002,3020.9,3020.8,5.74346699]
[1765813717516,0.001,3022.2,3021.1,0.98597929]
[1765813717717,0.001,3022.2,3022.1,0.0526]
[1765813718115,0.001,3022.2,3021.8,0.0526]
[1765813718315,0.001,3022.2,3021.3,0.58047529]
[1765813718521,0.509,3023.0,3021.4,0.1536]
[1765813718720,0.509,3023.0,3021.5,0.405504]
[1765813718947,1.6692,3023.6,3022.0,0.58047529]
[1765813718948,0.4762,3023.6,3022.0,0.58047529]
[1765813719158,0.4762,3023.6,3022.1,1.36285137]
[1765813719331,0.4762,3023.6,3022.2,0.03308847]
[1765813719655,7.0908352,3023.6,3022.3,0.58047529]
[1765813719838,0.4772,3023.4,3022.3,0.58047529]
[1765813720043,0.4772,3023.4,3022.1,3.30892852]
[1765813720363,0.4772,3023.4,3021.8,0.0526]
[1765813720364,2.784692,3023.2,3021.8,0.0526]
[1765813720660,15.181617,3023.1,3021.8,0.0526]
[1765813720821,10.759533,3023.1,3021.9,3.30911512]
[1765813721022,0.4762,3023.0,3022.1,6.61788577]
[1765813721221,0.4762,3023.0,3022.1,3.30892843]
[1765813721440,0.4762,3023.0,3022.1,6.61788577]
[1765813721634,3.30808164,3022.9,3021.9,6.61835268]
[1765813722429,0.557,3023.1,3021.9,9.92752902]
[1765813722763,0.557,3023.1,3021.4,10.84220354]
[1765813722764,0.1965,3022.0,3021.4,0.58047529]
[1765813723058,0.1965,3022.0,3021.4,3.30965366]
[1765813723225,0.1965,3022.0,3021.1,0.58047529]
[1765813723421,0.1965,3022.0,3021.0,3.8906039]
[1765813723627,3.30906684,3022.0,3021.1,6.62010524]
[1765813724033,3.30906684,3022.0,3021.2,0.58047529]
[1765813724456,3.30906684,3022.0,3019.7,0.03987572]
[1765813724457,0.4762,3021.9,3019.9,3.31127664]
[1765813724669,0.1965,3021.3,3019.9,0.1536]
[1765813724877,0.556,3021.2,3019.8,3.31143767]
[1765813725170,1.0322,3021.2,3020.8,0.002]
[1765813725745,4.3421707,3021.2,3020.8,0.002]
[1765813725946,0.4762,3021.1,3020.8,0.002]
[1765813726580,2.147372,3021.0,3020.8,0.002]
[1765813727075,0.4762,3020.9,3020.8,0.002]
[1765813727879,10.48585744,3021.2,3020.8,0.002]
[1765813727880,3.31005262,3021.1,3020.8,0.002]
[1765813728169,0.4762,3021.0,3020.8,0.002]
[1765813729473,22.40092872,3020.9,3020.8,0.002]
[1765813729672,18.64699649,3020.9,3020.8,0.002]
[1765813729881,3.82634749,3020.9,3020.8,0.002]
[1765813730086,27.673629,3020.7,3019.5,0.002]
[1765813730251,0.4762,3020.8,3019.5,0.002]
[1765813730440,10.962552,3020.5,3019.5,0.002]
[1765813730641,0.1965,3019.6,3019.5,0.002]
[1765813730945,1.2277,3019.6,3018.3,0.002]
[1765813731171,0.7515,3019.6,3018.9,3.3124383]
[1765813731340,0.7515,3019.6,3018.5,3.31284142]
[1765813731341,0.4762,3019.5,3018.5,3.31284142]
[1765813731548,0.4762,3019.5,3018.3,0.002]
[1765813731850,3.78802735,3019.5,3018.3,0.002]
[1765813732179,0.4762,3019.5,3018.3,0.002]
[1765813732379,3.31180846,3019.5,3018.3,0.002]
[1765813732581,0.4762,3019.4,3018.3,0.002]
[1765813733479,2.144036,3019.3,3018.3,0.002]
[1765813733800,3.31213566,3019.2,3018.3,0.002]
[1765813734080,3.78833566,3019.2,3018.3,0.002]
[1765813734252,0.4762,3019.1,3018.3,0.002]
[1765813734443,0.555,3019.0,3018.3,0.002]
[1765813734859,0.4762,3018.9,3018.3,0.002]
[1765813735790,0.555,3019.0,3018.3,0.002]
[1765813736345,1.0312,3019.0,3018.3,0.002]
[1765813736586,4.34358908,3019.0,3018.3,0.002]
[1765813736786,0.4762,3018.9,3018.3,0.002]
[1765813737791,0.555,3019.0,3018.3,0.002]
[1765813738204,3.86735695,3019.0,3018.3,0.002]
[1765813738562,1.0312,3019.0,3018.3,0.002]
[1765813739304,4.34357638,3019.0,3018.3,0.002]
[1765813739659,4.34357034,3019.0,3018.3,0.002]
[1765813739876,1.0312,3019.0,3018.3,0.002]
[1765813740302,0.555,3019.0,3018.3,0.002]
[1765813740482,0.555,3019.0,3018.4,0.0566]
[1765813740684,0.001,3019.5,3018.8,0.58047529]
[1765813740895,0.001,3019.5,3018.9,0.7945342]
[1765813741107,0.001,3019.5,3018.9,0.6369342]
[1765813741300,0.001,3020.8,3019.4,0.405504]
[1765813741508,0.001,3020.8,3019.0,0.1576]
[1765813741709,0.001,3020.8,3020.7,0.1]
[1765813741895,0.001,3020.8,3020.7,3.99096623]
[1765813742100,0.001,3020.8,3020.7,4.87772395]
[1765813742415,0.001,3020.8,3020.7,4.72112395]
[1765813742613,0.001,3020.8,3018.3,0.002]
[1765813742614,0.001,3020.8,3020.1,0.1]
[1765813742913,0.001,3020.8,3018.9,0.1566]
[1765813742914,0.1825,3020.2,3018.9,0.1566]
[1765813743112,0.7365,3020.2,3019.7,3.31158724]
[1765813743411,0.554,3020.2,3019.7,6.62317448]
[1765813743574,0.1825,3020.6,3019.7,10.59707917]
[1765813743778,0.4926,3020.5,3019.7,3.31158724]
[1765813743979,0.4926,3020.5,3019.2,0.58047529]
[1765813744375,3.80331203,3020.5,3019.2,0.58047529]
[1765813744590,0.405504,3020.4,3019.1,3.31220066]
[1765813744780,0.1825,3019.2,3018.3,0.002]
[1765813744978,0.554,3019.4,3019.0,3.31232397]
[1765813745209,0.554,3019.4,3019.0,6.62467905]
[1765813745410,0.4926,3019.3,3018.3,0.002]
[1765813745609,0.4926,3019.3,3018.6,3.31272352]
[1765813745924,9.700101,3019.0,3018.3,0.002]
[1765813746128,3.31224537,3019.1,3018.3,0.002]
[1765813746416,0.4926,3019.0,3018.3,0.002]
[1765813746982,4.04842631,3019.4,3018.3,0.002]
[1765813747204,0.4926,3019.3,3018.3,0.002]
[1765813747422,2.673731,3019.2,3018.3,0.002]
[1765813747834,0.4926,3019.1,3018.3,0.002]
[1765813747996,3.80484778,3019.1,3018.3,0.002]
[1765813748191,7.11709556,3019.1,3018.3,0.002]
[1765813748406,5.750547,3018.9,3018.3,0.002]
[1765813748651,30.0,3018.7,3017.0,0.002]
[1765813748802,0.98597929,3018.4,3017.0,0.002]
[1765813749137,0.405504,3018.2,3017.0,0.002]
[1765813749295,0.4926,3018.3,3017.2,6.62866232]
[1765813749496,0.553,3018.2,3017.2,7.29172855]
[1765813749720,0.553,3018.2,3017.2,10.60605971]
[1765813750029,0.553,3018.8,3017.3,0.58047529]
[1765813750234,0.553,3018.8,3017.3,0.73907529]
[1765813750418,7.597056,3018.7,3017.3,0.58047529]
[1765813750619,0.405504,3018.6,3017.3,0.58047529]
[1765813750932,0.405504,3018.2,3017.3,0.58047529]
[1765813751116,0.405504,3018.0,3017.2,3.31429359]
[1765813751320,0.553,3018.1,3017.2,6.62862475]
[1765813751522,0.58047529,3019.2,3017.8,0.58047529]
[1765813751523,0.4926,3019.2,3017.8,0.58047529]
[1765813751698,0.1825,3019.4,3017.8,0.58047529]
[1765813751699,0.1825,3019.4,3017.9,0.564104]
[1765813751899,0.7365,3019.4,3018.1,0.58047529]
[1765813752716,0.4926,3019.3,3018.1,0.58047529]
[1765813752916,0.4926,3019.3,3018.0,6.62690522]
[1765813753317,4.782148,3019.2,3018.0,6.62690522]
[1765813753726,0.4926,3019.1,3018.0,6.62690522]
[1765813753939,0.4926,3019.1,3018.0,7.34764327]
[1765813754145,0.4926,3019.1,3018.1,0.58047529]
[1765813754434,0.001,3019.5,3018.8,0.58047529]
[1765813754837,0.001,3019.5,3019.4,0.0566]
[1765813755334,0.001,3019.5,3019.1,0.0566]
[1765813755710,0.001,3019.5,3018.7,0.0566]
[1765813756111,0.001,3019.5,3018.9,0.58047529]
[1765813756314,0.001,3019.5,3018.9,1.39057257]
[1765813757204,0.001,3019.5,3019.0,0.1586]
[1765813757405,0.001,3019.5,3018.9,0.58047529]
[1765813757628,0.4936,3019.5,3018.9,0.58047529]
[1765813757827,0.4936,3019.5,3018.3,0.0566]
[1765813758032,3.31191627,3019.4,3018.3,0.0566]
[1765813758344,0.1825,3018.4,3017.4,3.31406556]
[1765813758542,0.553,3018.3,3017.8,3.31362309]
[1765813758839,0.553,3018.3,3017.4,0.43666294]
[1765813759007,3.683718,3018.2,3017.1,0.002]
[1765813759212,0.405504,3018.1,3017.1,6.6308286]
[1765813759511,0.898104,3018.1,3017.2,0.58047529]
[1765813759927,0.553,3018.0,3017.2,0.58047529]
[1765813760129,0.553,3017.9,3017.3,6.62844264]
[1765813760327,4.04907863,3017.9,3017.4,0.002]
[1765813760640,1.0456,3017.8,3017.4,0.002]
[1765813760843,0.6751,3017.9,3017.4,0.002]
[1765813761007,0.553,3017.8,3017.4,0.002]
[1765813761202,3.31312328,3018.3,3017.4,0.002]
[1765813761402,0.4926,3018.3,3017.4,0.002]
[1765813761629,1.0456,3018.2,3017.4,0.002]
[1765813762003,0.4926,3018.2,3017.4,0.002]
[1765813762236,0.553,3018.1,3017.4,6.63022296]
[1765813762414,0.6751,3018.4,3017.4,7.68276716]
[1765813762608,0.553,3018.3,3017.4,6.63022296]
[1765813762807,1.0456,3018.3,3017.4,3.31611148]
[1765813763113,0.1825,3017.5,3017.4,0.002]
[1765813763328,0.7347,3017.5,3017.4,0.002]
[1765813763527,1.2273,3017.5,3017.4,0.002]
[1765813764641,0.4926,3018.2,3017.4,0.002]
[1765813764838,0.553,3017.7,3017.4,0.002]
[1765813765426,0.4926,3017.6,3017.4,0.002]
[1765813765636,0.553,3017.7,3017.4,0.002]
[1765813765819,0.553,3017.6,3017.4,0.002]
[1765813766238,0.4926,3017.5,3017.4,0.002]
[1765813767656,0.553,3017.6,3017.4,0.002]
[1765813768328,7.67342692,3017.6,3017.4,0.002]
[1765813768833,0.4926,3017.5,3017.4,0.002]
[1765813769460,0.553,3017.5,3017.4,0.002]
[1765813770149,0.03987572,3017.8,3017.4,0.002]
[1765813770458,0.553,3017.7,3017.4,0.002]
[1765813770859,0.4623,3017.6,3017.4,0.002]
[1765813771440,0.1825,3017.9,3017.4,0.002]
[1765813771637,0.553,3017.8,3017.4,0.002]
[1765813772040,0.553,3017.7,3017.4,0.002]
[1765813772342,0.4586,3018.9,3017.4,0.002]
[1765813772565,1.0116,3018.8,3017.4,0.7449595]
[1765813772768,11.806316,3018.6,3017.4,0.002]
[1765813772970,10.461334,3018.6,3017.4,0.002]
[1765813773173,0.4586,3018.5,3017.4,0.002]
[1765813773795,0.03987572,3018.4,3017.4,0.002]
[1765813774404,1.192,3018.3,3017.4,0.002]
[1765813774700,3.31323305,3018.2,3017.4,0.002]
[1765813774897,0.4586,3018.2,3017.4,0.002]
[1765813775059,1.0116,3018.1,3017.4,0.002]
[1765813775507,0.4586,3018.0,3017.4,0.002]
[1765813775806,6.445346,3017.8,3017.4,0.002]
[1765813775958,30.0,3017.4,3015.9,0.002]
[1765813776163,0.1804,3016.6,3015.9,0.002]
[1765813776469,0.7334,3016.6,3015.9,0.002]
[1765813776675,0.4586,3016.5,3015.9,0.002]
[1765813777102,0.553,3016.4,3015.9,0.002]
[1765813777286,0.553,3016.3,3015.9,0.002]
[1765813777997,0.553,3016.2,3015.9,0.002]
[1765813778376,0.4586,3016.6,3015.9,0.002]
[1765813778692,0.553,3016.5,3015.9,0.002]
[1765813779181,0.553,3016.4,3015.9,0.002]
[1765813779668,0.553,3016.3,3015.9,0.002]
[1765813779868,0.4586,3016.6,3015.9,0.002]
[1765813780061,0.553,3016.5,3015.9,0.002]
[1765813780392,0.553,3016.4,3015.9,0.002]
[1765813780766,0.4586,3016.3,3015.9,0.002]
[1765813781425,3.77393825,3016.3,3015.9,0.002]
[1765813781724,0.553,3016.2,3015.9,0.002]
[1765813782136,1.0116,3016.2,3015.9,0.002]
[1765813782323,0.553,3016.2,3015.9,0.002]
[1765813782496,0.03987572,3016.4,3015.9,0.002]
[1765813782693,0.553,3016.3,3015.9,0.002]
[1765813783127,0.4586,3016.2,3015.9,0.002]
[1765813783336,0.553,3016.3,3015.9,0.002]
[1765813783628,0.4586,3016.2,3015.9,0.002]
[1765813784708,0.4586,3016.2,3016.0,0.002]
[1765813785328,0.639,3016.8,3016.0,0.002]
[1765813785495,0.553,3016.7,3016.0,0.002]
[1765813786100,0.4586,3016.6,3016.0,0.002]
[1765813786431,0.1804,3016.8,3016.0,0.002]
[1765813786731,0.03987572,3016.6,3016.0,0.002]
[1765813786904,0.553,3016.5,3016.0,0.002]
[1765813787302,1.0116,3016.5,3016.0,0.002]
[1765813787548,0.553,3016.4,3016.0,0.002]
[1765813787731,0.553,3016.3,3016.1,0.1116]
[1765813788205,0.553,3016.3,3016.1,0.002]
[1765813788847,0.4586,3016.2,3016.1,0.002]
[1765813790451,3.77403001,3016.2,3016.1,0.002]
[1765813790623,0.4586,3016.2,3016.1,0.002]
[1765813791061,1.0116,3016.2,3016.1,0.002]
[1765813791360,0.553,3016.2,3016.1,0.002]
[1765813791749,1.0116,3016.2,3016.1,0.002]
[1765813792477,0.553,3016.2,3016.1,0.002]
[1765813793158,0.001,3016.5,3016.1,0.002]
[1765813793360,0.001,3016.5,3016.1,0.1116]
[1765813793567,0.553,3016.4,3016.1,0.1116]
[1765813793864,0.55102057,3016.4,3016.1,0.1116]
[1765813794359,0.001,3016.5,3016.2,0.74667529]
[1765813794562,0.001,3016.5,3016.3,0.78268859]
[1765813794767,0.001,3016.5,3016.4,7.54908594]
[1765813794953,0.001,3016.5,3016.4,7.95458994]
[1765813795259,0.001,3016.5,3016.4,11.43600012]
[1765813795471,0.639,3018.3,3016.6,0.405504]
[1765813795652,3.95324226,3019.2,3017.5,0.58047529]
[1765813795830,0.553,3018.4,3017.6,0.75490859]
[1765813796165,0.6411,3019.2,3017.6,0.92010859]
[1765813796363,0.554,3018.7,3017.6,0.75490859]
[1765813796541,0.554,3018.7,3017.4,0.58047529]
[1765813796863,0.554,3018.7,3017.6,0.405504]
[1765813797052,0.554,3018.7,3017.5,0.1652]
[1765813797252,0.554,3018.7,3017.6,3.31389183]
[1765813797451,0.554,3018.7,3017.7,0.58047529]
[1765813797752,0.554,3018.7,3017.7,1.48302159]
[1765813797940,0.001,3018.7,3017.7,1.88852559]
[1765813798142,0.001,3018.7,3018.0,0.405504]
[1765813798344,0.001,3018.7,3018.6,0.63607529]
[1765813798564,0.001,3018.7,3018.1,0.58047529]
[1765813798762,0.001,3018.7,3018.2,0.75490859]
[1765813799266,0.001,3018.7,3018.3,10.10456984]
[1765813799468,0.001,3018.7,3018.3,9.93936984]
[1765813799669,0.001,3018.7,3018.3,6.62624656]
[1765813800168,0.001,3018.7,3018.4,0.58047529]
[1765813800472,0.405504,3018.6,3016.8,3.31470837]
[1765813800779,0.001,3018.7,3018.2,6.62646196]
[1765813801068,0.001,3018.7,3018.6,0.0556]
[1765813801231,0.4586,3018.6,3017.4,0.0556]
[1765813801434,0.405504,3018.5,3017.5,3.31392949]
[1765813801636,0.001,3018.7,3017.9,6.98619425]
[1765813801868,0.001,3018.7,3018.5,0.58047529]
[1765813802070,0.001,3020.3,3018.6,0.570704]
[1765813802234,0.001,3020.3,3019.4,7.56666954]
[1765813802436,0.001,3020.3,3018.9,6.98619425]
[1765813802667,0.001,3020.3,3018.4,0.58047529]
[1765813802668,0.554,3019.5,3018.4,0.58047529]
[1765813802865,0.001,3019.5,3018.4,0.58047529]
[1765813803038,0.001,3019.5,3019.4,0.58047529]
[1765813803239,0.001,3019.5,3019.4,3.89239156]
[1765813803742,0.001,3019.5,3018.5,0.58047529]
[1765813803948,0.554,3019.5,3019.4,3.31191627]
[1765813804171,0.001,3019.5,3019.4,3.31191627]
[1765813804464,0.001,3019.5,3019.3,3.31198363]
[1765813804667,0.1839,3018.9,3018.0,3.31338364]
[1765813804839,0.001,3019.5,3018.1,1.2431699]
[1765813805035,0.4791,3019.5,3018.1,1.4083699]
[1765813805374,0.4791,3019.5,3018.3,0.58047529]
[1765813805375,0.553,3019.4,3018.3,0.58047529]
[1765813805536,0.553,3019.3,3018.3,0.58047529]
[1765813805958,0.4781,3019.2,3018.2,6.6264661]
[1765813806363,0.553,3019.1,3018.2,6.6264661]
[1765813806673,0.553,3019.1,3017.2,0.0556]
[1765813806674,0.1839,3018.3,3017.2,0.0556]
[1765813806871,0.1839,3018.3,3017.8,3.3135864]
[1765813807079,0.553,3018.2,3017.5,3.31398518]
[1765813807233,3.86629613,3018.2,3017.0,3.31451739]
[1765813807434,0.4781,3018.1,3017.1,0.58047529]
[1765813808172,0.1839,3018.3,3017.1,1.21764575]
[1765813808360,0.553,3018.0,3017.0,0.58047529]
[1765813808569,0.1839,3018.6,3017.1,0.1652]
[1765813808752,0.552,3018.5,3017.0,0.58047529]
[1765813809077,0.4781,3018.5,3017.0,0.58047529]
[1765813809235,0.552,3018.4,3017.2,13.25732464]
[1765813809442,0.1839,3017.4,3016.1,0.002]
[1765813809681,0.405504,3017.0,3016.1,0.002]
[1765813809976,0.552,3017.3,3016.1,0.002]
[1765813809977,0.4781,3016.9,3016.1,0.002]
[1765813810175,1.0301,3016.9,3016.1,0.002]
[1765813810639,0.4781,3016.8,3016.1,3.31753797]
[1765813811071,0.4781,3016.8,3016.1,0.002]
[1765813811447,3.7928774,3016.8,3016.1,0.002]
[1765813811647,7.1076548,3016.8,3016.1,0.002]
[1765813811857,0.4781,3016.7,3016.1,0.002]
[1765813812065,0.552,3016.6,3016.1,0.002]
[1765813812263,0.72717172,3016.6,3016.1,0.002]
[1765813812461,0.4781,3016.5,3016.1,0.002]
[1765813813569,0.553,3016.4,3016.1,0.002]
[1765813813942,0.4781,3016.3,3016.1,0.002]
[1765813814870,0.553,3016.2,3016.1,0.002]
[1765813815276,1.0311,3016.2,3016.1,0.002]
[1765813815449,0.553,3016.2,3016.1,0.002]
[1765813816244,1.0311,3016.2,3016.1,0.002]
[1765813818173,0.4781,3016.2,3016.1,0.002]
[1765813818375,4.34653001,3016.2,3016.1,0.002]
[1765813818551,0.4781,3016.2,3016.1,0.002]
[1765813818751,4.75203401,3016.2,3016.1,0.002]
[1765813818986,5.3325093,3016.2,3016.1,0.002]
[1765813820010,0.4781,3016.2,3016.1,0.002]
[1765813820180,1.0311,3016.2,3016.1,0.002]
[1765813820715,0.553,3016.2,3016.1,0.002]
[1765813821010,1.0311,3016.2,3016.1,0.002]
[1765813821308,0.553,3016.2,3016.1,0.002]
[1765813821775,1.0311,3016.2,3016.1,0.002]
[1765813821971,0.4781,3016.2,3016.1,0.002]
[1765813822173,0.662,3017.4,3016.1,0.2768]
[1765813822388,0.553,3017.3,3016.1,1.00041983]
[1765813822637,1.61157529,3017.3,3016.1,0.002]
[1765813822778,0.58047529,3017.2,3016.1,0.002]
[1765813822974,0.58047529,3017.2,3016.1,0.1116]
[1765813822975,0.4781,3017.2,3016.1,0.1116]
[1765813823497,1.0311,3017.1,3016.3,0.58047529]
[1765813823974,0.4781,3017.0,3016.3,0.58047529]
[1765813824578,0.553,3016.9,3016.3,0.58047529]
[1765813824779,0.553,3016.9,3016.2,3.31543001]
[1765813824981,0.405504,3016.7,3016.1,0.002]
[1765813825196,0.405504,3016.2,3016.1,0.002]
[1765813825402,3.72093401,3016.2,3016.1,0.002]
[1765813825611,4.19903401,3016.2,3016.1,0.002]
[1765813825810,1.0301,3016.2,3016.1,0.002]
[1765813826009,0.4781,3016.2,3016.1,0.002]
[1765813826213,1.0301,3016.2,3016.1,0.002]
[1765813826641,0.4781,3016.7,3016.1,0.002]
[1765813826824,0.552,3016.2,3016.1,0.002]
[1765813827022,0.4781,3016.7,3016.1,0.002]
[1765813827222,0.552,3016.6,3016.1,0.002]
[1765813827442,3.86701534,3016.6,3016.1,0.002]
[1765813827645,1.0301,3016.5,3016.1,0.002]
[1765813827854,0.4781,3016.4,3016.1,0.002]
[1765813828070,0.44537972,3017.1,3016.1,0.002]